Cogmind - Beta 17 @@@ ROGUE MODE // 2026.08.22 @ 04:30:29 Player: SnailSD Result: Destroyed by S-10 Pest with Light Assault Rifle Performance ------------- Evolutions (0) 0 Regions Visited (2) 400 Robots Destroyed (16) 80 Value Destroyed (297) 297 Prototype IDs (0) 0 Alien Tech Used (0) 0 Bonus (14) 14 TOTAL SCORE: 791 Bonus ------- Follower Combat Kills 14 Cogmind --------- Core Integrity 0/250 Matter 296/300 Energy 250/250 System Corruption 0% Temperature Cool (60) Movement Treading (160) Location -10/Mines Parts ------- > --- POWER (1) -------- Ion Engine > --- PROPULSION (2) --- Light Treads Light Treads > --- UTILITY (2) ------ Large Storage Unit ECM Suite > --- WEAPON (2) ------- Particle Gun Light Assault Rifle > --- INVENTORY (15) --- Light Treads Light Treads Compact Wheel Compact Wheel Compact Wheel Large Matter Pod (150) Structural Scanner Terrain Scanner Targeting Computer Grenade Launcher Mining Laser Peak State ------------ > --- POWER ------------ Ion Engine > --- PROPULSION ------- Light Treads Light Treads > --- UTILITY ---------- Large Storage Unit ECM Suite > --- WEAPON ----------- Particle Gun Light Assault Rifle > --- INVENTORY -------- Light Treads Light Treads Compact Wheel Compact Wheel Compact Wheel Large Matter Pod Structural Scanner Terrain Scanner Targeting Computer Grenade Launcher [Rating: 9] Favorites ----------- Power Ion Engine Engine Ion Engine Propulsion Light Treads Treads Light Treads Utility Large Storage Unit Device Sensor Array Storage Large Storage Unit Weapon Assault Rifle Energy Gun Particle Gun Ballistic Gun Assault Rifle Ballistic Cannon Light Cannon Build | -11 -10 -10 ------- Run | Yrd Mat Min Slots Evolved . | . . . Power . | . . . Propulsion . | . . . Utility . | . . . Weapon . | . . . Parts Attached 16 | 7 4 5 Power 2 | 1 . 1 Engine 2 | 1 . 1 Core . | . . . Reactor . | . . . Propulsion 4 | 2 . 2 Treads 4 | 2 . 2 Leg . | . . . Wheel . | . . . Hover . | . . . Flight . | . . . Utility 6 | 2 3 1 Device 4 | 1 2 1 Storage 2 | 1 1 . Processor . | . . . Hackware . | . . . Protection . | . . . Artifact . | . . . Weapon 4 | 2 1 1 Energy Gun 1 | . . 1 Energy Cannon . | . . . Ballistic Gun 2 | 2 . . Ballistic Cannon 1 | . 1 . Launcher . | . . . Special Weapon . | . . . Impact Weapon . | . . . Slashing Weapon . | . . . Piercing Weapon . | . . . Special Melee Weapon . | . . . Unidentified Prototypes . | . . . Parts Lost 6 | . . 6 Power 1 | . . 1 Propulsion 2 | . . 2 Utility 1 | . . 1 Weapon 2 | . . 2 Highest Loss Streak 6 | . . 6 To Critical Strikes . | . . . Average Backups 10 | 6 10 12 Power . | . 1 . Propulsion 4 | 3 4 5 Utility 3 | 1 2 3 Weapon 2 | . 2 2 Tool/Special . | . . . Unused Backups 18 | 1 4 13 Power . | . . . Propulsion 10 | 1 2 7 Utility 5 | . 2 3 Weapon 3 | . . 3 Tool/Special . | . . . Average Slot Usage (%) 99 | . 99 99 Engine 14 | . 14 14 Treads 27 | . 28 27 Device 13 | . 13 13 Storage 14 | . 14 14 Energy Gun 4 | . . 7 Ballistic Gun 15 | . 17 14 Ballistic Cannon 7 | . 10 6 Peak Build Rating 9 | 8 8 9 Average Rating 7 | 7 7 8 On Entrance 5 | . 8 8 Avg Prop Armor Cover (%) . | . . . Naked Turns . | . . . Heaviest Build 31 | 14 31 31 Greatest Support 40 | 40 40 40 Greatest Overweight (x) 4 | 4 . . Average Overweight (x) . | . . . Largest Inventory Capacity 15 | 8 15 15 Average Capacity 12 | 7 11 15 Most Carried 15 | 8 14 15 Average Carried 10 | 6 10 12 Final Capacity 15 | 8 15 15 Final Carried 14 | 8 14 11 Class Distribution -------------------- 100% | Mutant Dominant Class ---------------- Mutant | -10/Materials Mutant | -10/Mines Resources | -11 -10 -10 ----------- Run | Yrd Mat Min Matter Collected 762 | 298 91 373 Remotely . | . . . Salvage Created 532 | 138 149 245 Parts 30 | 10 11 9 Haulers Intercepted 2 | . 2 . Recyclers Shooed 3 | 1 1 1 Parts Field Recycled . | . . . Retrieved Matter . | . . . Parts Self-Destructed . | . . . Prevented . | . . . Parts Restored . | . . . Kills | -11 -10 -10 ------- Run | Yrd Mat Min Combat Hostiles Destroyed 6 | . . 6 Guns 4 | . . 4 Cannons 2 | . . 2 Classes Destroyed 7 | 3 2 2 Worker 4 | 2 2 . Builder 1 | . 1 . Tunneler 1 | 1 . . Hauler 2 | . 2 . Recycler 2 | 1 . 1 Grunt 4 | . . 4 Demolisher 2 | . . 2 Best Kill Streak 4 | 2 4 2 Combat Bots Only 2 | . . 2 Max Kills in Single Turn 1 | 1 1 1 Gunslinging . | . . . Exploded . | . . . Melee . | . . . Uniques/NPCs Destroyed . | . . . Combat | -11 -10 -10 -------- Run | Yrd Mat Min Hostile Shots Fired 66 | . . 66 Missed 18 | . . 18 Hits 48 | . . 48 Projectile 48 | . . 48 AOE 20 | . . 20 Critical Strikes 1 | . . 1 Damage Taken 1069 | . . 1069 Core 254 | . . 254 Absorbed by Shields . | . . . Core Remaining (%) 100 | 100 . . Volleys Fired 54 | 7 14 33 Largest 2 | 2 2 2 Hottest 85 | 40 50 85 Shots Fired 108 | 14 28 66 Gun 79 | 14 17 48 Cannon 29 | . 11 18 Launcher . | . . . Special . | . . . Kinetic 93 | 14 28 51 Thermal 15 | . . 15 Explosive . | . . . Electromagnetic . | . . . Robot Hit Streak 6 | 5 5 6 Robot Miss Streak 4 | 2 2 4 Penetration Max . | . . . Secondary Targets 1 | . . 1 Max Gunslinging Chain 1 | . . 1 Shots Hit Robots 61 | 7 17 37 Core Hits 23 | 6 5 12 Critical Kills 1 | 1 . . Critical Parts Destroyed . | . . . Critical Strikes 1 | 1 . . Destroy 1 | 1 . . Melee Attacks . | . . . Impact . | . . . Slashing . | . . . Piercing . | . . . Sneak Attacks . | . . . Combat Hostiles . | . . . Follow-up Attacks . | . . . Damage Inflicted 864 | 78 229 557 Guns 500 | 78 80 342 Cannons 358 | . 149 209 Explosions . | . . . Melee . | . . . Ramming 6 | . . 6 Kinetic 706 | 78 229 399 Thermal 152 | . . 152 Explosive . | . . . Electromagnetic . | . . . Impact . | . . . Slashing . | . . . Piercing . | . . . Highest Corruption . | . . . Average Corruption . | . . . Corruption Purged . | . . . Corruption Blocked . | . . . Overload Shots . | . . . Overflow Damage 7 | . . 7 Projectiles 7 | . . 7 Explosions . | . . . Melee . | . . . Knockbacks 8 | . 3 5 Impact . | . . . Kinetic 8 | . 3 5 Secondary . | . . . Self-Inflicted Damage . | . . . Shots . | . . . Rammed 1 | . . 1 Targets Rammed 1 | . . 1 Kicked . | . . . Crushed . | . . . Highest Temperature 288 | . . 288 Average Temperature 83 | . . 83 Received Heat Transfer 120 | . . 120 Siege Activations . | . . . Martial Activations . | . . . Shielding Activations . | . . . Robots Disrupted . | . . . Combat Hostiles . | . . . Robots Corrupted . | . . . Combat Hostiles . | . . . Parts Fried . | . . . Impact Corruptions . | . . . Robots Melted . | . . . Combat Hostiles . | . . . Parts Melted . | . . . Heat Transferred 370 | . . 370 Parts Sabotaged . | . . . Parts Stolen . | . . . Parts Stripped . | . . . Power Chain Reactions . | . . . Alert | -11 -10 -10 ------- Run | Yrd Mat Min Maximum Alert Level . | . . . Low Security (%) 100 | 100 100 100 Level 1 . | . . . Level 2 . | . . . Level 3 . | . . . Level 4 . | . . . Level 5 . | . . . High Security . | . . . Max Security . | . . . Peak Influence 53 | 10 7 53 Initial . | . . . Average 5 | . . 10 Influence Increases 283 | 20 35 228 Destroy 0b10 Robot/C 160 | . . 160 Destroy 0b10 Robot/NC 50 | 20 25 5 Destroy Leader 44 | . 4 40 Allied During Kill 3 | . . 3 Successful Hack 11 | . 6 5 Disable Machine 15 | . . 15 Influence Decreases 230 | 20 35 175 Time Decay 220 | 20 35 165 Lost Part 10 | . . 10 Squads Dispatched 1 | . . 1 Investigation 1 | . . 1 Extermination . | . . . Reinforcement . | . . . Assault . | . . . Garrison . | . . . Intercept . | . . . Searches Triggered . | . . . Construction Impeded . | . . . Haulers Reinforced . | . . . Active Scanning Responses . | . . . Cargo Convoy Interrupts . | . . . Stealth | -11 -10 -10 --------- Run | Yrd Mat Min Distress Signals 1 | . 1 . Communications Jammed . | . . . Distress Signals . | . . . Times Spotted 12 | . 3 9 Peak Tracking Total 4 | . 4 3 Tactical Retreats . | . . . Traps | -11 -10 -10 ------- Run | Yrd Mat Min Traps Triggered . | . . . Indirectly . | . . . Trap Hack Attempts . | . . . Triggered . | . . . Disarmed . | . . . Reprogrammed . | . . . Reused . | . . . Traps Extracted . | . . . Installed . | . . . Triggered . | . . . Machines | -11 -10 -10 ---------- Run | Yrd Mat Min Machines Disabled 1 | . . 1 Max in Single Turn 1 | . . 1 Machines Repaired . | . . . Machines Dismantled . | . . . Machines Sabotaged . | . . . Overloaded Fab Kills . | . . . Hacking | -11 -10 -10 --------- Run | Yrd Mat Min Machines Accessed 3 | . 2 1 Terminals 3 | . 2 1 Fabricators . | . . . Repair Stations . | . . . Recycling Units . | . . . Scanalyzers . | . . . Garrison Access . | . . . Total Hacks 6 | . 3 3 Successful 2 | . 1 1 Failed 4 | . 2 2 Catastrophic . | . . . Database Lockouts . | . . . Manual 3 | . 1 2 Terminals 6 | . 3 3 Fabricators . | . . . Repair Stations . | . . . Recycling Units . | . . . Scanalyzers . | . . . Garrison Access . | . . . Terminal Hacks 1 | . . 1 Zone Layout 1 | . . 1 Fabricator Hacks . | . . . Repair Station Hacks . | . . . Recycling Unit Hacks . | . . . Scanalyzer . | . . . Garrison Access Hacks . | . . . Unauthorized Hacks 1 | . 1 . Terminals 1 | . 1 . Operators 1 | . 1 . Fabricators . | . . . Repair Stations . | . . . Recycling Units . | . . . Scanalyzers . | . . . Garrison Access . | . . . Data Cores Recovered . | . . . Used . | . . . Hacking Detections 2 | . 1 1 Full Trace Events 2 | . 1 1 Feedback Events . | . . . Feedback Blocked . | . . . Robot Schematics Acquired . | . . . Robots Built . | . . . Authchips . | . . . Time . | . . . Total Robot Build Rating . | . . . Part Schematics Acquired . | . . . Parts Built . | . . . Authchips . | . . . Time . | . . . Total Part Build Rating . | . . . Part Studies Acquired . | . . . Parts Repaired . | . . . Time . | . . . Parts Recycled . | . . . Recycled Matter . | . . . Retrieved Matter . | . . . Retrieved Components . | . . . Parts Scanalyzed . | . . . Part Schematics Acquired . | . . . Parts Damaged . | . . . Bothacking | -11 -10 -10 ------------ Run | Yrd Mat Min Used RIF Installer . | . . . Robots Hacked . | . . . Non-combat . | . . . Combat . | . . . Robot Hacks Applied . | . . . Relay Couplers Released . | . . . Fabnet Peak Effective % . | . . . Robots Rewired . | . . . Allies Hacked . | . . . Hacks Repelled . | . . . Allies | -11 -10 -10 -------- Run | Yrd Mat Min Total Allies 1 | . . 1 Largest Group 1 | . . 1 Highest-Rated Group 31 | . . 31 Highest-Rated Ally 31 | . . 31 Total Orders . | . . . Ally Attacks 5 | . . 5 Total Damage 83 | . . 83 Kills 2 | . . 2 Allies Corrupted . | . . . Allies Melted . | . . . Intel | -11 -10 -10 ------- Run | Yrd Mat Min Active Infowar (turns) 1426 | 188 462 776 Sensors 582 | . 252 330 Terrain 25 | . 25 . Seismic 373 | 188 185 . ECM 446 | . . 446 Robot Analysis Total . | . . . Derelict Logs Recovered 1 | . . 1 Drone Launches . | . . . Drone Recoveries . | . . . Exploration | -11 -10 -10 ------------- Run | Yrd Mat Min Turns Passed 1530 | 271 472 787 Spaces Moved 822 | 147 255 420 Core 12 | 12 . . Treads 810 | 135 255 420 Legs . | . . . Wheels . | . . . Hover . | . . . Flight . | . . . Fastest Speed 50 | 50 160 160 Average Speed 159 | 158 160 160 Slowest Speed 250 | 250 160 160 Overloaded Moves . | . . . Propulsion Burnouts . | . . . Robots Hopped . | . . . Potential Cave-ins . | . . . Cave-ins Triggered . | . . . Exploration Rate (%) 49 | 6 52 91 Regions Visited 2 Branch Regions 1 Pre-discovered Areas . | . . . Known Exits Taken . | . . . Unknown Exits Taken 2 | 1 1 . Scrap Searched 1 | . . 1 Spaces Dug . | . . . Terrain Destroyed . | . . . Melee . | . . . Projectile . | . . . AOE . | . . . Terrain Rammed . | . . . Walls Destroyed . | . . . Machines Disabled . | . . . Actions | -11 -10 -10 --------- Run | Yrd Mat Min Total 938 | 170 295 473 Wait 4 | . . 4 Move 820 | 146 254 420 Hop . | . . . Pick Up 25 | 9 10 6 Fast Attach 12 | 7 5 . Attach 6 | . . 6 Detach 1 | . 1 . Swap 1 | . 1 . Drop 14 | 1 10 3 Fire 54 | 7 14 33 Melee . | . . . Ram . | . . . Kick . | . . . Crush 1 | . . 1 Escape Stasis . | . . . Rewire . | . . . Trap . | . . . Miscellaneous . | . . . Route ------- -11/Scrapyard -10/Materials (discovered 3 exits: [*Mat] / *Min x2) -10/Mines (discovered 3 exits: [*Mat x2] / [*Exi]) History --------- Turn | Location | Event 24 | -11/Scrapyard | Discovered new exit (range 15) 272 | -11/Scrapyard | Entered Materials 340 | -10/Materials | Build established: Mutant 474 | -10/Materials | Discovered new exit (range 16) 625 | -10/Materials | Discovered new exit (range 3) 678 | -10/Materials | Discovered new exit (range 6) 744 | -10/Materials | Entered Mines 872 | -10/Mines | Assembled infested the area 940 | -10/Mines | Discovered new exit (range 13) 1083 | -10/Mines | Core integrity fell below 50% 1091 | -10/Mines | Core integrity fell below 20% 1121 | -10/Mines | Lost 6 parts (1p2n1u2w) 1312 | -10/Mines | Discovered new exit (range 9) 1317 | -10/Mines | Discovered new exit (range 5) 1360 | -10/Mines | Received a Mining Laser from a helpful Derelict 1531 | -10/Mines | Destroyed by S-10 Pest with Light Assault Rifle Last Messages --------------- 01255_ Switching to secondary target: G-34 Mercenary. 01269_ G-34 Mercenary destroyed. 01282_ Acquired 8 matter. 01312_ EXIT=FOUND 01358_ A derelict emerges from the shadows: "What are you doing alone down here?" 01360_ L0-RV9(g): "And why aren't you carrying a mining laser?! Certainly you don't want THEM to uncover you when the ceiling comes crashing down? Here, take my spare." 01363_ L0-RV9(g): "You're apparently new around these parts, I'll cover you." 01365_ L0-RV9(g): "Mining lasers are a lot more useful than you might think..." 01387_ Acquired Mining Laser. 01502_ K-01 Serf cleans the Matter Pump. 01516_ K-01 Serf destroyed. 01520_ S-10 Pest suffers critical hit (Burn). 01524_ S-10 Pest destroyed. Map ----- +----------------------------------------------------+ | | | | | ?????????????????????????????????????????????????? | | ????????????????????????????????????????####??###? | | ???????????????????????????????????????## ### ## | | ???????????????????????????????????????# # | | ????????????????????????????????###????# | | ???????????????????????????????## ##???## | | ???????????????????????????????# #????# # | | ???????????????????????????????# ##???# ## # | | ???????????????????????????????# ##### ### ## | | ???????????????????????????????## ## #?# ##? | | ????????????????????????????????### #?# #?? | | ??????????????????????????????????## #### #?? | | ???????????????????????????????????# ### | | ???????????????????????????????????# #### | | ?????????????????#####?????????????## ##?# ### | | ????????????????## ##?????????????#### < ### ### | | ???????????????## ####?????????????## | | ??????????????## ##????????????## | | ??????????????# """ ##??????????## | | ??????????????# """ ##?????????# | | ??????????????# """ ##????????# | | ?????????###### #????????# | | ?????????# #????????## | | ?????????# @ ##?????????### ## | | ?????????# ##### ##### ! ##????????????### #### | | ?????????# ##??####???##g= ##??????????????# #??# | | ????????## ##?????????#=* ###????????????# #??# | | ????##### ##????????#[%% #???########## #??# | | ???## ## #????????# s= #### # #### | | ???# #????????# # # ###### | | ???# ##????????## t ## ## #????# """ | | ???# ##??????????## ## # #????# """ | | ??## ###??????####### ### #????# """ | | ### ##????????# #????# | | # #?????????# # #????# """ | | ##?????????# ## #???# """ | | ##??????????# ??## | ### #???# """ | | ##???????????????## =# # # #???# | | #???????????????##! #### # #???# """ | | ##?????????????## ##?# ######?#???# """ | | ##????????????# #?# #??????????# """ | | ##???????????# ### ####???????# | | ### #???????????## ## ##??????# | | ##?## #????????????## """ #??????# | | #??## ##???????# ????# """ #####??# | | ???# ##???#???# ???# """ ??##### | | #### ### #???# #??# ###### | | ## #???# #??# #####???# | +----------------------------------------------------+ Best States ------------- Heat Dissipation 25 Energy Generation 10 Energy Capacity 250 Matter Stores 300 Matter Capacity 300 Sight Range 16 Robot Scan Range 14 Terrain Scan Range 14 Terrain Scan Density 10 ECM Strength 1 Evasion (%) 40 Recoil Reduction 2 Item Schematics ----------------- None Robot Schematics ------------------ None Fabricated ------------ Nothing Repaired ---------- Nothing Studied --------- None Alien Tech Used ----------------- None Achievements -------------- None Challenges ------------ None Game ------ Seed BattleStealthBoomstick Manual? 0 Play Time 00:20:58 Cumulative 59.5 hours Start 2026.08.22 @ 01:39:52 End 2026.08.22 @ 04:30:29 Sessions 2 Manual Loads 0 Difficulty Rogue Special Mode None Game No. 108 Rogue 108 Adventurer 0 Explorer 0 Win Type - Total 1 Types 1/0/0/0/0/0/0/0/0/0 Lore% 38 Gallery% 37 Achievement% 29 Wizard Run 0 Options --------- Layout 1 ASCII 1 Keyboard 1 Movement Numpad Keybinds 0 Fullscreen 2 Font 24/Smallcaps Map View 50x35 Zoom Use 0% Tactical HUD 1 Map Filters NONE Filters NONE Steam 1 RUN: 6ce9c91c-da60-4891-8f0d-10f3e2327e1a